bitfinex/quotes_ETHUSD_20250123
["timestamp","ask_amount","ask_price","bid_price","bid_amount"]
[1737613211613,8.35323,3212.1,3211.6,3.11369]
[1737613211818,8.35323,3212.1,3211.4,3.94386586]
[1737613212233,11.46654,3212.1,3211.4,3.94386586]
[1737613212648,11.46654,3212.1,3211.4,3.91273]
[1737613212848,9.64264417,3212.1,3211.4,3.91273]
[1737613213026,3.11338,3212.0,3211.5,0.265]
[1737613213231,6.52941417,3212.1,3211.5,0.265]
[1737613213446,3.92848,3211.8,3211.5,0.265]
[1737613214647,3.11358,3211.8,3211.5,0.265]
[1737613214856,5.24,3211.7,3211.5,0.265]
[1737613219879,5.24,3211.7,3211.4,0.265]
[1737613220081,5.24,3211.7,3211.2,3.89419]
[1737613220260,5.24,3211.7,3211.3,0.265]
[1737613220682,0.7626,3211.6,3211.0,0.8194]
[1737613220881,0.7626,3211.6,3211.3,0.265]
[1737613221043,3.87632,3211.6,3211.2,0.265]
[1737613222283,0.7626,3211.6,3211.2,0.265]
[1737613222981,3.87632,3211.6,3211.2,0.265]
[1737613223185,1.55622324,3211.6,3211.2,0.265]
[1737613223409,0.7626,3211.6,3211.2,0.265]
[1737613225193,0.7626,3211.6,3211.3,3.11398]
[1737613225402,5.24,3211.7,3211.3,3.93338]
[1737613226612,5.24,3211.8,3211.3,3.93338]
[1737613230301,5.24,3211.8,3211.5,3.11379]
[1737613230613,5.24,3212.0,3211.7,3.11361]
[1737613230773,5.24,3212.0,3211.8,0.8194]
[1737613230978,5.24,3212.0,3211.9,3.11342]
[1737613231220,5.24,3212.0,3211.8,0.8194]
[1737613231221,5.24,3212.0,3211.8,3.93288]
[1737613232819,5.24,3212.0,3211.9,3.11342]
[1737613235500,5.24,3212.3,3211.9,3.11342]
[1737613236023,5.24,3212.3,3211.9,3.37842]
[1737613237407,5.24,3212.3,3211.9,0.265]
[1737613242735,8.35304,3212.3,3211.9,0.265]
[1737613243103,5.24,3212.3,3211.9,0.265]
[1737613244041,8.35306,3212.3,3211.9,0.265]
[1737613244340,3.88055,3211.9,3211.6,0.265]
[1737613244709,1.222861,3212.2,3211.6,0.265]
[1737613244710,3.11328,3212.1,3211.6,0.265]
[1737613245540,3.11328,3212.1,3211.6,3.37868]
[1737613245737,5.24,3212.3,3211.8,0.809]
[1737613246126,5.24,3212.3,3211.8,3.9225]
[1737613246847,5.24,3212.3,3211.9,3.11339]
[1737613247045,5.24,3212.3,3211.8,3.9225]
[1737613248015,5.24,3212.3,3212.0,3.1133]
[1737613248213,5.24,3212.3,3212.1,35.0]
[1737613250713,5.24,3212.5,3212.2,3.11311]
[1737613250967,5.24,3212.7,3212.3,0.7894]
[1737613251125,5.24,3212.7,3212.4,3.11286]
[1737613251771,5.24,3212.7,3212.4,38.11286]
[1737613253154,5.24,3212.7,3212.5,3.11283]
[1737613253387,5.24,3212.7,3212.4,38.11286]
[1737613255382,5.24,3212.7,3212.5,0.264]
[1737613256371,5.24,3212.9,3212.5,0.264]
[1737613257071,5.24,3212.9,3212.5,38.37683]
[1737613257278,5.24,3212.9,3212.6,3.1127]
[1737613257785,5.24,3212.9,3212.5,35.264]
[1737613258207,5.24,3212.9,3212.5,38.37683]
[1737613262195,5.24,3213.0,3212.5,38.37683]
[1737613262501,5.24,3213.0,3212.7,3.90201]
[1737613262903,5.24,3213.0,3212.7,38.90201]
[1737613263072,5.24,3213.2,3212.8,3.11251]
[1737613263274,5.24,3213.2,3212.7,35.7894]
[1737613263471,8.35224,3213.2,3212.7,35.0]
[1737613263905,3.11225,3213.1,3212.5,3.37679]
[1737613264300,3.11225,3213.1,3212.6,35.0]
[1737613266229,3.11236,3213.0,3212.6,35.0]
[1737613266819,0.7789,3212.7,3212.5,0.264]
[1737613268206,6.0189,3212.7,3212.5,0.264]
[1737613268395,6.0189,3212.7,3212.6,35.0]
[1737613268790,3.11278,3212.6,3212.3,0.264]
[1737613269118,3.11278,3212.6,3212.1,0.7738]
[1737613269318,3.11278,3212.6,3212.4,35.0]
[1737613270091,6.0189,3212.7,3212.4,35.0]
[1737613270291,9.13156,3212.7,3212.4,35.0]
[1737613271292,9.76315531,3212.7,3212.4,35.0]
[1737613272468,9.76315531,3212.7,3212.2,0.264]
[1737613272916,9.76315531,3212.7,3212.3,35.0]
[1737613273360,3.11291,3212.5,3211.8,3.11345]
[1737613273659,3.11291,3212.5,3212.0,3.37732]
[1737613273841,12.87589531,3212.7,3212.1,35.0]
[1737613274048,9.76315531,3212.7,3212.1,35.0]
[1737613274665,3.11274,3212.6,3212.1,35.0]
[1737613275628,3.11286,3212.5,3212.1,35.0]
[1737613277029,5.24,3212.4,3212.1,35.0]
[1737613281029,5.24,3212.4,3212.2,0.8178]
[1737613281646,5.24,3212.4,3212.3,35.0]
[1737613282372,5.24,3212.4,3212.3,38.11303]
[1737613282939,5.24,3212.7,3212.3,38.11303]
[1737613285490,5.24,3212.7,3212.3,35.0]
[1737613285692,5.24,3212.7,3212.5,0.8178]
[1737613286400,5.24,3212.7,3212.6,35.0]
[1737613286563,5.24,3212.7,3212.3,0.8178]
[1737613286766,5.24,3212.7,3212.3,3.93083]
[1737613286945,5.24,3212.7,3212.4,35.0]
[1737613287692,8.35271,3212.7,3212.3,0.8178]
[1737613288253,5.24,3212.7,3212.4,35.0]
[1737613288493,5.24,3212.7,3212.3,0.8178]
[1737613288983,5.24,3212.7,3212.3,35.8178]
[1737613289406,5.24,3212.7,3212.4,3.11286]
[1737613289955,5.24,3212.7,3212.5,35.0]
[1737613290799,5.24,3212.7,3212.4,3.11286]
[1737613291536,5.24,3212.7,3212.4,38.11286]
[1737613294942,5.24,3212.9,3212.4,38.11286]
[1737613295800,5.24,3212.9,3212.4,3.11286]
[1737613298197,5.24,3212.9,3212.6,3.11273]
[1737613298400,5.24,3212.9,3212.7,35.0]
[1737613300183,5.24,3213.1,3212.8,3.88693]
[1737613300784,5.24,3213.1,3212.9,35.0]
[1737613302675,5.24,3213.1,3212.8,0.7744]
[1737613302892,0.7687,3212.9,3212.4,3.8873]
[1737613303081,0.7687,3212.9,3212.5,35.0]
[1737613303817,5.24,3212.8,3212.6,0.263]
[1737613304511,5.24,3212.8,3212.7,35.0]
[1737613315798,5.24,3213.0,3212.7,35.0]
[1737613325855,5.24,3213.0,3212.8,0.8287]
[1737613326056,5.24,3213.0,3212.9,3.11245]
[1737613326355,5.24,3213.0,3212.8,0.8287]
[1737613326555,5.24,3213.0,3212.9,35.0]
[1737613327557,5.24,3213.1,3212.9,35.0]
[1737613329477,5.24,3213.1,3212.8,3.11254]
[1737613330072,5.24,3213.1,3212.8,38.11254]
[1737613331046,5.24,3213.1,3212.9,0.8287]
[1737613331376,5.24,3213.5,3213.0,1.3787]
[1737613331586,5.24,3213.5,3213.4,3.94066]
[1737613331892,5.24,3213.5,3213.4,38.94066]
[1737613332875,5.24,3213.5,3213.4,35.8287]
[1737613333038,5.24,3213.5,3213.4,35.0]
[1737613334256,5.24,3213.5,3213.2,3.11215]
[1737613334673,5.24,3213.5,3213.3,35.0]
[1737613334982,5.24,3213.5,3213.2,3.11215]
[1737613335553,5.24,3213.5,3213.2,38.11215]
[1737613336987,5.24,3213.5,3213.4,3.11196]
[1737613339287,5.24,3213.5,3213.4,38.11196]
[1737613340088,5.24,3214.0,3213.4,35.8267]
[1737613340295,5.24,3214.0,3213.7,3.11165]
[1737613340477,5.24,3214.0,3213.9,3.11148]
[1737613340797,5.24,3214.0,3213.9,4.20018]
[1737613341651,5.24,3214.0,3213.9,0.262]
[1737613342786,5.24,3214.0,3213.9,3.37348]
[1737613343480,5.24,3214.5,3214.1,3.11127]
[1737613344012,5.24,3214.5,3213.9,4.20018]
[1737613344713,5.24,3214.5,3214.2,3.11117]
[1737613344914,5.24,3214.5,3214.0,3.14247069]
[1737613345216,5.24,3214.5,3214.1,3.11123]
[1737613345391,5.24,3214.5,3214.2,3.11116]
[1737613345809,5.24,3214.5,3214.4,3.111]
[1737613346018,5.24,3214.7,3214.5,3.11089]
[1737613347015,5.24,3214.7,3214.4,0.85780688]
[1737613347016,5.24,3214.7,3214.4,3.93768]
[1737613348120,5.24,3214.7,3214.4,3.96878689]
[1737613348800,5.24,3214.7,3214.4,3.93768]
[1737613349404,5.24,3214.7,3214.4,0.8267]
[1737613349606,0.774,3214.6,3214.1,0.7832]
[1737613349880,3.11091,3214.5,3214.2,0.261]
[1737613350085,3.11107,3214.4,3214.2,0.261]
[1737613351943,3.11109,3214.3,3214.2,0.261]
[1737613352119,3.422199,3214.3,3214.2,0.261]
[1737613352535,3.4057103,3214.3,3214.2,0.261]
[1737613353040,4.1797103,3214.3,3214.2,0.261]
[1737613353713,3.11124,3214.2,3213.8,0.261]
[1737613353913,0.72909503,3214.1,3213.8,0.261]
[1737613354247,3.11124,3214.2,3213.8,0.261]
[1737613355312,4.49464746,3214.6,3213.8,0.261]
[1737613355548,4.49464746,3214.6,3213.9,0.7832]
[1737613355753,4.49464746,3214.6,3214.0,3.11138]
[1737613356046,0.774,3214.6,3214.1,3.11128]
[1737613356258,5.24,3214.7,3214.2,3.14229025]
[1737613356412,5.24,3214.7,3214.4,3.89015]
[1737613357440,5.24,3214.9,3214.4,3.89015]
[1737613358135,5.24,3214.9,3214.5,3.11087]
[1737613358636,5.24,3214.9,3214.6,3.11074]
[1737613360984,5.24,3214.9,3214.4,3.92125672]
[1737613361388,5.24,3214.9,3214.5,3.11087]
[1737613363188,5.24,3215.0,3214.5,3.11087]
[1737613365181,5.24,3215.0,3214.6,3.1108]
[1737613366624,5.24,3215.0,3214.7,3.11068]
[1737613366918,5.24,3215.0,3214.6,3.14190669]
[1737613366919,5.24,3215.3,3214.8,3.1106]
[1737613367126,8.35013,3215.3,3214.8,3.1106]
[1737613367907,5.24,3215.3,3215.0,0.7814]
[1737613368110,5.24,3215.3,3215.1,3.11024]
[1737613369587,5.24,3215.3,3215.1,3.37124]
[1737613369918,5.24,3215.3,3215.2,3.11022]
[1737613370924,5.24,3215.3,3215.1,0.261]
[1737613371438,8.35013,3215.3,3215.1,0.261]
[1737613373406,3.11022,3215.2,3215.1,0.261]
[1737613373776,3.90362,3215.2,3215.1,0.261]
[1737613375342,3.90362,3215.2,3214.5,0.7814]
[1737613375646,3.90362,3215.2,3214.6,0.26]
[1737613375647,3.11046,3215.0,3214.6,0.26]
[1737613377110,3.11046,3215.0,3214.5,0.7814]
[1737613377405,3.11046,3215.0,3214.6,0.26]
[1737613378055,5.24,3214.9,3214.6,0.26]
[1737613380371,8.35057,3214.9,3214.6,0.26]
[1737613380657,5.24,3214.9,3214.6,0.26]
[1737613381451,9.18563,3214.9,3214.6,0.26]
[1737613381663,3.11062,3214.8,3214.6,0.26]
[1737613382654,6.07505,3214.9,3214.6,0.26]
[1737613387059,9.18563,3214.9,3214.6,0.26]
[1737613387964,3.11063,3214.8,3214.6,0.26]
[1737613388167,6.07505,3214.9,3214.6,0.26]
[1737613390070,9.18562,3214.9,3214.6,0.26]
[1737613390370,1.229612,3214.8,3214.6,0.26]
[1737613390543,5.24,3214.9,3214.6,0.26]
[1737613391470,8.35051,3214.9,3214.6,0.26]
[1737613391844,8.35051,3214.9,3214.7,35.0]
[1737613393574,5.24,3214.7,3214.0,3.89254]
[1737613393756,3.11087,3214.6,3214.3,0.26]
[1737613393957,0.835087,3214.5,3214.3,0.26]
[1737613394249,0.835087,3214.5,3214.3,35.26]
[1737613394454,3.111,3214.4,3214.3,35.26]
[1737613394666,3.111,3214.4,3214.3,0.26]
[1737613395777,3.111,3214.4,3214.1,35.26]
[1737613396145,3.11087,3214.6,3214.1,35.26]
[1737613397041,3.11087,3214.6,3214.2,0.29088576]
[1737613397460,3.111,3214.4,3214.2,0.29088576]
[1737613397663,3.111,3214.4,3214.3,35.0]
[1737613397982,3.8853,3214.4,3214.2,0.29088576]
[1737613398480,3.8853,3214.4,3214.2,35.0]
[1737613398785,5.24,3214.3,3214.1,0.26]
[1737613399276,5.24,3214.3,3214.2,35.0]
[1737613399881,5.24,3214.3,3214.1,0.26]
[1737613400285,5.24,3214.3,3214.2,35.0]
[1737613401588,5.24,3214.3,3214.2,35.29085928]
[1737613403591,5.24,3214.3,3214.2,36.04385928]
[1737613404103,5.24,3214.3,3214.2,35.29085928]
[1737613404262,5.24,3214.3,3214.2,0.29085928]
[1737613404753,9.72077,3214.3,3214.2,0.29085928]
[1737613405412,12.72077,3214.3,3214.2,0.29085928]
[1737613406697,3.0,3214.2,3213.5,0.753]
[1737613406981,9.60968,3214.3,3213.3,1.04385928]
[1737613406982,8.35168,3213.7,3213.3,1.04385928]
[1737613407699,8.35168,3213.7,3213.3,0.29085928]
[1737613407700,3.11181,3213.6,3213.3,0.29085928]
[1737613408483,3.11194,3213.5,3213.3,0.29085928]
[1737613408688,3.11196,3213.4,3213.3,0.29085928]
[1737613408884,6.22365,3213.6,3213.2,0.259]
[1737613409061,3.11181,3213.6,3213.1,36.012]
[1737613410567,5.24,3213.7,3213.1,39.12424]
[1737613410889,8.35168,3213.7,3213.1,39.12424]
[1737613411874,5.24,3213.7,3213.1,39.12424]
[1737613412061,3.11178,3213.6,3213.1,39.12424]
[1737613412898,3.72798292,3213.6,3213.1,39.12424]
[1737613413067,0.61620292,3213.6,3213.1,39.12424]
[1737613413267,3.72798292,3213.6,3213.1,36.012]
[1737613414095,3.11191,3213.5,3213.1,35.753]
[1737613414398,3.72798292,3213.6,3213.2,0.259]
[1737613414794,3.72798292,3213.6,3213.2,0.54920873]
[1737613415003,0.61620292,3213.6,3213.2,3.66127873]
[1737613415800,0.61620292,3213.6,3213.3,3.11202]
[1737613416697,5.24,3213.5,3213.3,3.11202]
[1737613417197,5.24,3213.5,3213.2,0.259]
[1737613417568,5.24,3213.5,3213.3,3.11206]
[1737613417768,5.24,3213.5,3213.4,35.0]
[1737613418904,5.24,3213.5,3213.4,38.11196]
[1737613420002,5.24,3213.5,3213.4,35.0]
[1737613420599,5.24,3213.5,3213.2,3.37112]
[1737613421195,5.24,3213.5,3213.3,38.11203]
[1737613421403,5.24,3213.5,3213.3,35.0]
[1737613421572,5.24,3213.5,3213.3,38.11205]
[1737613422289,5.24,3213.5,3213.4,0.29024592]
[1737613423376,6.13678929,3213.5,3213.4,0.29024592]
[1737613423577,6.13678929,3213.5,3213.3,0.259]
[1737613428615,5.24,3213.4,3213.3,0.259]
[1737613429703,5.24,3213.4,3213.3,0.5496488]
[1737613430483,5.24,3213.4,3213.3,3.6617088]
[1737613430682,5.24,3213.4,3213.3,4.4904088]
[1737613431383,5.24,3213.4,3213.3,39.4904088]
[1737613434409,5.24,3213.8,3213.4,3.11192]
[1737613434916,5.24,3213.8,3213.5,35.0]
[1737613435420,5.24,3213.8,3213.5,35.2906488]
[1737613436723,5.24,3213.8,3213.6,0.2906488]
[1737613438809,5.24,3213.8,3213.7,0.2906488]
[1737613439489,8.35158,3213.8,3213.7,0.2906488]
[1737613440740,5.24,3213.8,3213.7,0.2906488]
[1737613441515,5.24,3213.8,3213.7,1.1193488]
[1737613441714,5.24,3214.1,3213.7,4.2310188]
[1737613441914,5.24,3214.1,3213.8,0.8287]
[1737613442145,5.24,3214.1,3213.9,3.11147]
[1737613442643,5.24,3214.2,3214.0,0.8287]
[1737613442795,5.24,3214.2,3214.1,3.93999]
[1737613444031,5.24,3214.2,3214.1,4.2306388]
[1737613444434,3.11064,3214.8,3214.1,4.2306388]
[1737613444435,5.24,3214.7,3214.5,3.1109]
[1737613444737,5.24,3214.7,3214.6,4.1985]
[1737613444903,3.10982,3215.7,3214.9,3.11042]
[1737613445230,3.10982,3215.7,3215.0,0.7923]
[1737613445399,3.10982,3215.7,3215.0,3.90267]
[1737613445599,3.86647,3215.8,3215.0,3.90267]
[1737613445819,3.10985,3215.6,3215.1,35.0]
[1737613447339,3.10985,3215.6,3215.0,4.1933188]
[1737613447928,3.10985,3215.6,3215.0,39.1933188]
[1737613448238,3.10985,3215.6,3215.0,38.90267]
[1737613448397,0.61153976,3215.4,3215.0,38.90267]
[1737613448733,3.86647,3215.8,3215.0,3.90267]
[1737613449328,5.24,3215.7,3215.0,3.90267]
[1737613449507,5.24,3215.7,3215.0,0.7923]
[1737613449714,8.34983,3215.7,3215.1,3.11031]
[1737613450225,5.24,3215.7,3215.1,3.11031]
[1737613450423,5.24,3215.9,3215.3,3.11011]
[1737613450732,8.34955,3215.9,3215.3,3.11011]
[1737613450901,5.24,3215.9,3215.4,3.10994]
[1737613452437,5.24,3215.9,3215.5,0.259]
[1737613453123,0.63704642,3215.8,3215.5,0.259]
[1737613455339,5.24,3215.7,3215.5,0.259]
[1737613456239,5.24,3215.7,3215.3,3.88332]
[1737613456541,5.24,3215.7,3215.6,0.259]
[1737613459645,5.24,3215.7,3215.3,3.88332]
[1737613459845,5.24,3215.7,3215.5,0.259]
[1737613466253,5.24,3215.7,3215.6,3.10983]
[1737613466453,5.24,3216.1,3215.8,3.10962]
[1737613467517,5.24,3216.1,3215.6,3.91593]
[1737613467751,5.24,3216.1,3215.7,3.10971]
[1737613468325,5.24,3216.1,3215.6,3.91593]
[1737613469528,5.24,3216.1,3215.7,3.1097]
[1737613472665,5.24,3216.1,3215.8,3.10963]
[1737613472967,5.24,3216.1,3215.7,3.1097]
[1737613473127,5.24,3216.2,3215.7,3.1097]
[1737613474658,5.24,3216.2,3215.8,0.28966901]
[1737613475161,5.24,3216.2,3215.9,0.258]
[1737613482156,5.24,3216.2,3216.0,0.29014202]
[1737613484276,5.24,3216.2,3215.9,0.258]
[1737613484277,5.24,3216.2,3215.9,3.36753]
[1737613484478,5.24,3216.2,3215.9,0.258]
[1737613484843,5.24,3216.2,3215.9,3.36751]
[1737613486045,5.24,3216.2,3216.0,3.89621]
[1737613487267,5.24,3216.2,3216.1,0.29004075]
[1737613488580,5.24,3216.2,3216.0,3.89621]
[1737613489544,5.24,3216.6,3216.5,3.10896]
[1737613490290,5.24,3216.6,3216.5,3.3988713]
[1737613492189,5.24,3216.6,3216.5,4.1856713]
[1737613493918,5.24,3217.0,3216.5,4.1856713]
[1737613494195,5.24,3217.0,3216.6,3.1088]
[1737613495283,5.24,3217.0,3216.7,3.10875]
[1737613495787,5.24,3217.0,3216.6,0.7868]
[1737613495999,5.24,3217.0,3216.7,3.10871]
[1737613498671,5.24,3217.1,3216.7,3.10871]
[1737613499006,5.24,3217.5,3217.2,3.1082]
[1737613499210,5.24,3217.5,3217.3,3.10819]
[1737613502506,5.24,3217.5,3217.4,0.7868]
[1737613502706,5.24,3217.8,3217.4,3.89489]
[1737613503025,5.24,3217.9,3217.7,3.1078]
[1737613503321,5.24,3217.9,3217.8,0.7868]
[1737613503735,5.24,3217.9,3217.5,6.21584]
[1737613504030,5.24,3217.9,3217.6,3.10788]
[1737613504980,5.24,3217.9,3217.7,3.10779]
[1737613506443,5.24,3217.9,3217.5,3.89471]
[1737613506620,5.24,3217.9,3217.5,0.7868]
[1737613508409,5.24,3217.9,3217.5,3.89474]
[1737613512153,9.26274302,3217.9,3217.6,35.0]
[1737613512307,3.9109,3217.4,3216.9,3.10848]
[1737613512511,3.9109,3217.4,3217.0,0.257]
[1737613512733,3.9109,3217.4,3217.1,35.257]
[1737613513134,5.24,3217.5,3217.1,35.257]
[1737613514880,5.24,3217.5,3217.2,3.10821]
[1737613515026,5.24,3217.5,3217.3,3.10819]
[1737613515425,5.24,3217.5,3217.4,3.10809]
[1737613515653,5.24,3217.5,3217.4,3.88229]
[1737613516684,5.24,3217.5,3217.4,4.17080999]
[1737613517656,5.24,3217.9,3217.6,3.10784]
[1737613517864,5.24,3217.9,3217.8,3.10771]
[1737613518875,5.24,3217.9,3217.8,38.10771]
[1737613520676,0.00454023,3218.0,3217.9,3.10761]
[1737613521225,0.00454023,3218.0,3217.7,35.0]
[1737613521430,0.00454023,3218.0,3217.6,3.86796]
[1737613521872,0.00454023,3218.0,3217.7,35.0]
[1737613522072,0.00454023,3218.0,3217.8,0.03107619]
[1737613522239,0.00454023,3218.0,3217.9,3.10761]
[1737613522749,0.00454023,3218.0,3217.9,38.10761]
[1737613523354,0.00454023,3218.0,3217.9,39.41771]
[1737613524261,0.00454023,3218.0,3217.9,39.15655874]
[1737613524775,0.00454023,3218.0,3217.9,39.38767529]
[1737613525383,0.00454023,3218.0,3217.9,35.51996529]
[1737613526481,5.24454023,3218.0,3217.9,35.51996529]
[1737613527787,5.24454023,3218.0,3217.9,0.28884874]
[1737613527981,5.24454023,3218.0,3217.9,0.54584874]
[1737613529310,8.35206023,3218.0,3217.9,0.54584874]
[1737613529457,9.18396023,3218.0,3217.9,0.54584874]
[1737613529770,10.39341291,3218.0,3217.8,0.257]
[1737613529954,3.10761,3217.9,3217.8,0.257]
[1737613530161,0.8319,3217.3,3215.8,3.10959]
[1737613530398,3.0,3217.4,3215.6,3.2365831]
[1737613530399,3.10899,3216.5,3215.7,3.10966]
[1737613530560,0.8319,3216.4,3215.9,3.10953]
[1737613531210,0.8319,3216.7,3216.1,3.10934]
[1737613531560,0.8319,3216.7,3216.2,3.36624]
[1737613533098,0.8319,3216.7,3216.3,0.28996334]
[1737613533665,0.8319,3216.7,3216.3,35.28996334]
[1737613534201,0.8319,3216.7,3216.3,35.0]
[1737613534598,3.94073,3216.7,3216.3,35.0]
[1737613535714,5.24,3217.0,3216.3,38.10907]
[1737613536406,8.34853,3217.0,3216.3,38.10907]
[1737613536712,8.34853,3217.0,3216.3,35.0]
[1737613537382,3.10861,3216.9,3216.3,35.0]
[1737613539905,3.10868,3216.8,3216.4,0.257]
[1737613540614,3.10868,3216.8,3216.5,35.0]
[1737613541681,8.34853,3217.0,3216.5,35.0]
[1737613541933,8.34853,3217.0,3216.5,35.8184]
[1737613543410,5.24,3217.0,3216.5,35.8184]
[1737613543716,5.24,3217.0,3216.6,3.10885]
[1737613543926,5.24,3217.0,3216.6,0.257]
[1737613544291,5.24,3217.1,3216.7,35.0]
[1737613544528,5.24,3217.1,3216.7,38.10871]
[1737613544890,8.3482,3217.3,3216.7,38.10871]
[1737613547344,6.461341,3217.3,3216.6,0.257]
[1737613547514,3.1084,3217.1,3216.6,0.257]
[1737613547711,3.1084,3217.1,3216.6,35.257]
[1737613548536,3.1085,3217.0,3216.6,35.257]
[1737613550310,5.24,3216.9,3216.6,35.257]
[1737613550699,5.24,3216.9,3216.6,38.36584]
[1737613551634,5.24,3216.9,3216.7,0.781]
[1737613552202,5.24,3216.9,3216.7,3.88977]
[1737613553034,5.24,3216.9,3216.7,0.781]
[1737613554004,5.24,3216.9,3216.8,3.10867]
[1737613554576,5.24,3216.9,3216.8,35.0]
[1737613555146,5.24,3216.9,3216.8,38.10867]
[1737613555873,5.24,3216.9,3216.8,38.65867]
[1737613556237,5.24,3217.5,3217.0,3.10845]
[1737613556851,5.24,3217.5,3217.1,35.0]
[1737613559106,5.24,3217.5,3217.2,0.781]
[1737613559895,5.24,3217.5,3217.3,35.0]
[1737613560415,5.24,3217.5,3217.2,0.781]
[1737613560752,5.24,3217.5,3217.3,35.0]
[1737613567622,5.24,3217.5,3217.0,3.10842]
[1737613567791,3.9373,3217.4,3217.1,0.256]
[1737613567991,3.10826,3217.3,3217.1,0.256]
[1737613568212,5.24,3217.2,3217.1,0.256]
[1737613570420,5.24,3217.2,3217.1,4.14978]
[1737613570620,5.24,3217.2,3217.1,4.69978]
[1737613570816,5.24,3217.2,3217.1,39.69978]
[1737613571431,5.24,3217.2,3217.1,35.256]
[1737613571755,5.24,3217.2,3217.1,38.36438]
[1737613571958,5.24,3217.2,3217.1,39.14978]
[1737613572432,5.24,3217.2,3217.1,36.0414]
[1737613573258,5.24,3217.2,3217.1,39.14978]
[1737613573453,5.24,3217.2,3217.1,39.69978]
[1737613573820,5.24,3217.9,3217.6,0.7854]
[1737613574154,5.24,3217.9,3217.8,3.10771]
[1737613574457,5.24,3217.9,3217.8,3.65771]
[1737613574673,0.00454023,3218.0,3217.8,39.44311]
[1737613574836,0.00454023,3218.0,3217.9,3.68868203]
[1737613575033,0.00454023,3218.0,3217.9,4.47408203]
[1737613575435,0.00454023,3218.0,3217.9,4.44301]
[1737613578679,0.00454023,3218.0,3217.9,3.89301]
[1737613579250,0.00454023,3218.0,3217.9,3.92408301]
[1737613579654,0.00454023,3218.0,3217.9,4.47408301]
[1737613580134,0.00454023,3218.0,3217.9,7.47408301]
[1737613580341,0.00454023,3218.0,3217.9,7.44301]
[1737613582791,2.3e-07,3218.0,3217.9,10.37968002]
[1737613582943,2.3e-07,3218.0,3217.9,10.73087717]
[1737613583285,2.3e-07,3218.0,3217.9,16.36087717]
[1737613583591,0.00966087,3218.9,3218.8,3.89954]
[1737613583794,0.00966087,3218.9,3218.8,4.73659812]
[1737613583938,0.00966087,3218.9,3218.8,4.70554]
[1737613584932,0.00966087,3218.9,3218.8,4.73659813]
[1737613585086,0.00966087,3218.9,3218.8,7.73659813]
[1737613585295,0.00966087,3218.9,3218.8,7.70554]
[1737613585513,8.7e-07,3218.9,3218.8,7.95554]
[1737613585928,8.7e-07,3218.9,3218.8,8.30673715]
[1737613586655,8.7e-07,3218.9,3218.8,11.24340717]
[1737613586806,0.3125,3219.6,3219.5,3.89887]
[1737613587001,0.3125,3219.6,3219.5,10.41659222]
[1737613587312,0.3125,3219.6,3219.5,10.38554002]
[1737613589548,0.3125,3219.6,3219.5,7.44887]
[1737613589753,0.2625,3219.6,3219.5,7.44887]
[1737613592937,0.2625,3219.6,3219.5,7.70487]
[1737613594153,0.2625,3219.6,3219.5,0.256]
[1737613594618,1.0236,3219.6,3219.5,0.256]
[1737613597069,1.0236,3219.6,3219.2,3.10633]
[1737613597221,1.0236,3219.6,3219.5,0.256]
[1737613598152,0.2625,3219.6,3219.5,0.256]
[1737613600954,0.2625,3219.6,3219.5,3.36207]
[1737613601657,0.2625,3219.6,3219.5,3.91207]
[1737613603619,0.2625,3219.6,3219.5,3.36207]
[1737613604648,0.2625,3219.6,3219.5,3.91207]
[1737613611789,1.0163,3219.6,3219.5,0.256]
[1737613611974,0.2625,3219.6,3219.5,0.256]
[1737613612508,0.2625,3219.6,3219.5,3.36207]
[1737613618611,0.2625,3219.6,3219.1,3.10645]
[1737613618786,0.7538,3219.5,3219.2,0.256]
[1737613618967,0.7538,3219.5,3219.2,3.36234]
[1737613619162,0.2625,3219.6,3219.4,3.10616]
[1737613619721,0.2625,3219.6,3219.5,3.10607]
[1737613620511,0.7538,3219.5,3219.3,3.1062]
[1737613620897,0.2625,3219.6,3219.4,3.10607]
[1737613621091,0.2625,3219.6,3219.5,3.10607]
[1737613622013,0.2625,3219.6,3219.5,3.65607]
[1737613623102,0.2625,3219.6,3219.5,3.6871257]
[1737613623509,0.2625,3219.6,3219.5,6.6871257]
[1737613623825,0.2625,3219.6,3219.5,6.91207]
[1737613627439,0.2625,3219.6,3219.5,3.91207]
[1737613628638,0.2625,3219.6,3219.5,3.94312725]
[1737613629494,0.2625,3219.6,3219.5,3.91207]
[1737613630243,0.2625,3219.6,3219.5,3.94312544]
[1737613630744,0.2625,3219.6,3219.5,3.91207]
[1737613632139,0.2625,3219.6,3219.5,38.91207]
[1737613635253,0.2625,3219.6,3219.5,38.65607]
[1737613635465,0.2625,3219.6,3219.5,38.91207]
[1737613635850,0.2625,3219.6,3219.5,38.10607]